[Event "Late-Titled-Tuesday-Blitz-April-30-2024"]
[Site "Chess.com"]
[Date "2024.04.30"]
[Round "5"]
[White "HATilay"]
[Black "GMKrikor"]
[Result "0-1"]
[WhiteElo "2662"]
[BlackElo "2882"]
[TimeControl "180+1"]
[EndTime "14:57:11 PDT"]
[Termination "GMKrikor won by resignation"]

1. e4 {[%clk 0:03:00.9]} 1... c5 {[%clk 0:02:59.6]} 2. Nf3 {[%clk 0:03:01.2]}
2... Nc6 {[%clk 0:02:59]} 3. Bb5 {[%clk 0:03:01.4]} 3... Nf6 {[%clk 0:02:58.9]}
4. Nc3 {[%clk 0:02:59]} 4... Qc7 {[%clk 0:02:56.3]} 5. O-O {[%clk 0:02:59]} 5...
Nd4 {[%clk 0:02:51.7]} 6. Re1 {[%clk 0:02:59.2]} 6... a6 {[%clk 0:02:51.4]} 7.
Bf1 {[%clk 0:02:57.7]} 7... Ng4 {[%clk 0:02:49.3]} 8. g3 {[%clk 0:02:57.8]} 8...
Nxf3+ {[%clk 0:02:47.9]} 9. Qxf3 {[%clk 0:02:57.5]} 9... Ne5 {[%clk 0:02:48.7]}
10. Qe2 {[%clk 0:02:54.5]} 10... e6 {[%clk 0:02:48.1]} 11. d3 {[%clk 0:02:35.7]}
11... Be7 {[%clk 0:02:47.5]} 12. Bg2 {[%clk 0:02:34.3]} 12... d6 {[%clk
0:02:44.6]} 13. f4 {[%clk 0:02:30.6]} 13... Nc6 {[%clk 0:02:44.3]} 14. Qf2
{[%clk 0:02:08.2]} 14... O-O {[%clk 0:02:43.5]} 15. g4 {[%clk 0:02:08]} 15... b5
{[%clk 0:02:43.4]} 16. g5 {[%clk 0:02:07.6]} 16... f6 {[%clk 0:02:28.4]} 17.
gxf6 {[%clk 0:01:00.7]} 17... Bxf6 {[%clk 0:02:28.3]} 18. Be3 {[%clk 0:01:01.2]}
18... Bb7 {[%clk 0:02:22]} 19. Kh1 {[%clk 0:01:00]} 19... Bd4 {[%clk 0:02:12.1]}
20. Rg1 {[%clk 0:00:33.8]} 20... Rae8 {[%clk 0:02:09.1]} 21. Raf1 {[%clk
0:00:33.5]} 21... Bxe3 {[%clk 0:02:00.7]} 22. Qxe3 {[%clk 0:00:33.6]} 22... Nd4
{[%clk 0:02:01.4]} 23. Rf2 {[%clk 0:00:32.5]} 23... d5 {[%clk 0:01:49.9]} 24.
exd5 {[%clk 0:00:22.3]} 24... exd5 {[%clk 0:01:42.6]} 25. Qh3 {[%clk 0:00:08.1]}
25... Qd6 {[%clk 0:01:32.5]} 26. f5 {[%clk 0:00:04]} 26... b4 {[%clk 0:01:27.8]}
27. Nd1 {[%clk 0:00:04.1]} 27... Qe5 {[%clk 0:01:06.9]} 28. Rgf1 {[%clk
0:00:04.6]} 28... Bc8 {[%clk 0:01:04.6]} 29. Qg3 {[%clk 0:00:03.9]} 29... Bb7
{[%clk 0:00:28]} 30. Qxe5 {[%clk 0:00:03.6]} 30... Rxe5 {[%clk 0:00:28.9]} 31.
c3 {[%clk 0:00:04]} 31... bxc3 {[%clk 0:00:16.6]} 32. bxc3 {[%clk 0:00:04.2]}
32... Nb5 {[%clk 0:00:17.3]} 33. c4 {[%clk 0:00:04.4]} 33... Nd6 {[%clk
0:00:13]} 34. Nc3 {[%clk 0:00:04.7]} 34... dxc4 {[%clk 0:00:13]} 35. Bxb7 {[%clk
0:00:04.3]} 35... Nxb7 {[%clk 0:00:13.9]} 36. dxc4 {[%clk 0:00:04.7]} 36... Nd6
{[%clk 0:00:14.7]} 37. f6 {[%clk 0:00:04.7]} 37... g6 {[%clk 0:00:13]} 38. Nd5
{[%clk 0:00:04.5]} 38... Nxc4 {[%clk 0:00:13.5]} 39. Ne7+ {[%clk 0:00:03.6]}
39... Kf7 {[%clk 0:00:13.8]} 40. Rc2 {[%clk 0:00:03.3]} 40... Ne3 {[%clk
0:00:12.9]} 41. Rfc1 {[%clk 0:00:04]} 41... Nxc2 {[%clk 0:00:13]} 42. Rxc2
{[%clk 0:00:04.9]} 0-1

[Event "Late-Titled-Tuesday-Blitz-April-30-2024"]
[Site "Chess.com"]
[Date "2024.04.30"]
[Round "5"]
[White "WindWhistler11"]
[Black "Hirna2005"]
[Result "1-0"]
[WhiteElo "2560"]
[BlackElo "2360"]
[TimeControl "180+1"]
[EndTime "14:57:11 PDT"]
[Termination "WindWhistler11 won on time"]

1. c4 {[%clk 0:03:00.9]} 1... g6 {[%clk 0:02:57.3]} 2. g3 {[%clk 0:03:01]} 2...
Bg7 {[%clk 0:02:56.8]} 3. Bg2 {[%clk 0:03:01.7]} 3... e5 {[%clk 0:02:57.1]} 4.
Nc3 {[%clk 0:03:02]} 4... f5 {[%clk 0:02:56.8]} 5. e3 {[%clk 0:03:01.5]} 5... d6
{[%clk 0:02:57]} 6. Nge2 {[%clk 0:03:02.2]} 6... Nc6 {[%clk 0:02:57]} 7. O-O
{[%clk 0:03:01.8]} 7... Nf6 {[%clk 0:02:55.9]} 8. b3 {[%clk 0:02:59.6]} 8... O-O
{[%clk 0:02:54]} 9. Bb2 {[%clk 0:02:58.7]} 9... e4 {[%clk 0:02:50.1]} 10. d3
{[%clk 0:02:51.2]} 10... exd3 {[%clk 0:02:46.1]} 11. Qxd3 {[%clk 0:02:49.7]}
11... Ne5 {[%clk 0:02:42.9]} 12. Qc2 {[%clk 0:02:38]} 12... Bd7 {[%clk
0:02:27.5]} 13. Nf4 {[%clk 0:02:30.4]} 13... Rb8 {[%clk 0:02:21.5]} 14. Rad1
{[%clk 0:02:26]} 14... Qe8 {[%clk 0:02:11.6]} 15. c5 {[%clk 0:02:19.2]} 15...
dxc5 {[%clk 0:02:04.9]} 16. Ncd5 {[%clk 0:02:14.6]} 16... Nxd5 {[%clk
0:01:58.4]} 17. Bxd5+ {[%clk 0:02:09.6]} 17... Kh8 {[%clk 0:01:57.3]} 18. Qxc5
{[%clk 0:02:05.1]} 18... Bc6 {[%clk 0:01:42.9]} 19. Ne6 {[%clk 0:01:43.9]} 19...
Nf3+ {[%clk 0:01:06.8]} 20. Kg2 {[%clk 0:01:17.8]} 20... Bxb2 {[%clk 0:00:39]}
21. Nxf8 {[%clk 0:00:56.6]} 21... Ne5 {[%clk 0:00:28.6]} 22. Bxc6 {[%clk
0:00:49.4]} 22... Nxc6 {[%clk 0:00:27.1]} 23. Rd2 {[%clk 0:00:32.6]} 23... Bg7
{[%clk 0:00:16.7]} 24. Nd7 {[%clk 0:00:32.8]} 24... Rd8 {[%clk 0:00:16.1]} 25.
Rfd1 {[%clk 0:00:33.2]} 25... Qe4+ {[%clk 0:00:15.5]} 26. f3 {[%clk 0:00:33.3]}
26... Qe6 {[%clk 0:00:12.2]} 27. Qd5 {[%clk 0:00:19.9]} 27... Qe7 {[%clk
0:00:08.1]} 28. Qb5 {[%clk 0:00:16.6]} 28... Nb8 {[%clk 0:00:04.9]} 29. Nxb8
{[%clk 0:00:14.8]} 29... Rxb8 {[%clk 0:00:04.2]} 30. Qd7 {[%clk 0:00:13.5]}
30... Qxe3 {[%clk 0:00:03.6]} 31. Qxc7 {[%clk 0:00:13.7]} 31... Re8 {[%clk
0:00:02.9]} 32. Rd8 {[%clk 0:00:09]} 32... Bf6 {[%clk 0:00:02.1]} 33. Rxe8+
{[%clk 0:00:08.7]} 33... Qxe8 {[%clk 0:00:02.3]} 34. Rd2 {[%clk 0:00:07.8]}
34... h5 {[%clk 0:00:01.7]} 35. Qxb7 {[%clk 0:00:07.7]} 35... h4 {[%clk
0:00:01.5]} 36. gxh4 {[%clk 0:00:07.2]} 36... Bxh4 {[%clk 0:00:00.7]} 37. Qxa7
{[%clk 0:00:06.4]} 37... Bg5 {[%clk 0:00:00.3]} 38. Qd4+ {[%clk 0:00:06.3]} 1-0

[Event "Late-Titled-Tuesday-Blitz-April-30-2024"]
[Site "Chess.com"]
[Date "2024.04.30"]
[Round "5"]
[White "KorolDimitriy75"]
[Black "The_Straightforward_Rook"]
[Result "1-0"]
[WhiteElo "2362"]
[BlackElo "2501"]
[TimeControl "180+1"]
[EndTime "14:57:14 PDT"]
[Termination "KorolDimitriy75 won by resignation"]

1. d4 {[%clk 0:03:00.9]} 1... d5 {[%clk 0:02:55.4]} 2. c4 {[%clk 0:03:01.1]}
2... c6 {[%clk 0:02:55.8]} 3. Nc3 {[%clk 0:03:01.6]} 3... Nf6 {[%clk 0:02:56.1]}
4. e3 {[%clk 0:03:02.2]} 4... e6 {[%clk 0:02:55.9]} 5. Nf3 {[%clk 0:03:02.5]}
5... Nbd7 {[%clk 0:02:56.6]} 6. Bd3 {[%clk 0:03:03.1]} 6... dxc4 {[%clk
0:02:56.4]} 7. Bxc4 {[%clk 0:03:04]} 7... b5 {[%clk 0:02:57]} 8. Be2 {[%clk
0:03:04.5]} 8... b4 {[%clk 0:02:57.6]} 9. Na4 {[%clk 0:03:03.4]} 9... c5 {[%clk
0:02:56.6]} 10. b3 {[%clk 0:02:57.2]} 10... Bb7 {[%clk 0:02:27.8]} 11. O-O
{[%clk 0:02:56]} 11... Rc8 {[%clk 0:02:17.4]} 12. Bb2 {[%clk 0:02:49.2]} 12...
cxd4 {[%clk 0:02:15]} 13. Qxd4 {[%clk 0:02:36.2]} 13... Qa5 {[%clk 0:02:03.3]}
14. Rac1 {[%clk 0:02:27.4]} 14... Rxc1 {[%clk 0:01:54.1]} 15. Rxc1 {[%clk
0:02:28.3]} 15... Be7 {[%clk 0:01:54.5]} 16. Ne5 {[%clk 0:02:09.6]} 16... Nxe5
{[%clk 0:01:39.9]} 17. Qxe5 {[%clk 0:02:10.5]} 17... Qxe5 {[%clk 0:01:38.6]} 18.
Bxe5 {[%clk 0:02:11.4]} 18... Nd5 {[%clk 0:00:58.4]} 19. Bxg7 {[%clk 0:01:32.7]}
19... Rg8 {[%clk 0:00:56.3]} 20. Be5 {[%clk 0:00:39.1]} 20... Nc3 {[%clk
0:00:51.3]} 21. Nxc3 {[%clk 0:00:31]} 21... bxc3 {[%clk 0:00:30.3]} 22. f3
{[%clk 0:00:20.6]} 22... Kd7 {[%clk 0:00:19.7]} 23. Rxc3 {[%clk 0:00:19.2]}
23... Rc8 {[%clk 0:00:20.2]} 24. Bb5+ {[%clk 0:00:17.5]} 24... Kd8 {[%clk
0:00:20.2]} 25. Rxc8+ {[%clk 0:00:16.8]} 25... Kxc8 {[%clk 0:00:21.1]} 26. Kf2
{[%clk 0:00:14.5]} 26... h5 {[%clk 0:00:20.7]} 27. h3 {[%clk 0:00:12.7]} 27...
f6 {[%clk 0:00:16.8]} 28. Bd4 {[%clk 0:00:12.3]} 28... a6 {[%clk 0:00:16.2]} 29.
Bc4 {[%clk 0:00:12.2]} 29... e5 {[%clk 0:00:16.7]} 30. Bc3 {[%clk 0:00:12.3]}
30... Kc7 {[%clk 0:00:17]} 31. Be6 {[%clk 0:00:11.2]} 31... Bc6 {[%clk
0:00:16.6]} 32. h4 {[%clk 0:00:11]} 32... Be8 {[%clk 0:00:16.8]} 33. e4 {[%clk
0:00:10.1]} 33... Kb6 {[%clk 0:00:17.3]} 34. g4 {[%clk 0:00:10]} 34... a5 {[%clk
0:00:17.7]} 35. Kg3 {[%clk 0:00:09.3]} 35... hxg4 {[%clk 0:00:17.5]} 36. fxg4
{[%clk 0:00:09.4]} 36... a4 {[%clk 0:00:17.4]} 37. h5 {[%clk 0:00:08.8]} 37...
a3 {[%clk 0:00:16.2]} 38. h6 {[%clk 0:00:08.2]} 38... Bg6 {[%clk 0:00:16.1]} 39.
Bf5 {[%clk 0:00:07.3]} 39... Bxf5 {[%clk 0:00:16.4]} 40. gxf5 {[%clk 0:00:07.2]}
40... Bf8 {[%clk 0:00:17.3]} 41. h7 {[%clk 0:00:07]} 41... Bg7 {[%clk
0:00:17.8]} 42. Bb4 {[%clk 0:00:05.5]} 42... Kc6 {[%clk 0:00:14.8]} 43. Bxa3
{[%clk 0:00:05.6]} 43... Kd7 {[%clk 0:00:15.7]} 44. Bf8 {[%clk 0:00:05.5]} 44...
Ke8 {[%clk 0:00:16.6]} 45. Bxg7 {[%clk 0:00:05.3]} 45... Kf7 {[%clk 0:00:16.8]}
46. h8=Q {[%clk 0:00:06.2]} 1-0

[Event "Late-Titled-Tuesday-Blitz-April-30-2024"]
[Site "Chess.com"]
[Date "2024.04.30"]
[Round "5"]
[White "Good_Knight_Kiss"]
[Black "Chessmatus"]
[Result "0-1"]
[WhiteElo "2340"]
[BlackElo "2569"]
[TimeControl "180+1"]
[EndTime "14:57:14 PDT"]
[Termination "Chessmatus won by resignation"]

1. e4 {[%clk 0:03:00.9]} 1... c5 {[%clk 0:03:00.2]} 2. Nf3 {[%clk 0:03:00.5]}
2... d6 {[%clk 0:03:00.3]} 3. d4 {[%clk 0:03:00.3]} 3... cxd4 {[%clk 0:03:01.2]}
4. Nxd4 {[%clk 0:03:00.9]} 4... Nf6 {[%clk 0:03:01.8]} 5. Nc3 {[%clk 0:02:59.8]}
5... a6 {[%clk 0:03:02.4]} 6. h3 {[%clk 0:02:57.7]} 6... e5 {[%clk 0:02:59.4]}
7. Nde2 {[%clk 0:02:57.2]} 7... h5 {[%clk 0:02:58.3]} 8. Bg5 {[%clk 0:02:49.4]}
8... Be6 {[%clk 0:02:55.9]} 9. Bxf6 {[%clk 0:02:49.1]} 9... Qxf6 {[%clk
0:02:54.5]} 10. Nd5 {[%clk 0:02:49.7]} 10... Qd8 {[%clk 0:02:55.1]} 11. Nec3
{[%clk 0:02:50.3]} 11... Nd7 {[%clk 0:02:54.5]} 12. Bc4 {[%clk 0:02:50.9]} 12...
g6 {[%clk 0:02:49.9]} 13. O-O {[%clk 0:02:48.8]} 13... Bg7 {[%clk 0:02:45.9]}
14. Ne3 {[%clk 0:02:37.8]} 14... Nc5 {[%clk 0:02:42.3]} 15. Bxe6 {[%clk
0:02:29.4]} 15... Nxe6 {[%clk 0:02:38.1]} 16. Nc4 {[%clk 0:02:21.6]} 16... Nd4
{[%clk 0:02:03.4]} 17. Nd5 {[%clk 0:02:17.9]} 17... O-O {[%clk 0:02:00]} 18. c3
{[%clk 0:02:14.6]} 18... b5 {[%clk 0:01:16]} 19. Ncb6 {[%clk 0:01:58.3]} 19...
Rb8 {[%clk 0:01:15]} 20. cxd4 {[%clk 0:01:57.7]} 20... exd4 {[%clk 0:01:15.9]}
21. a4 {[%clk 0:01:38]} 21... Rxb6 {[%clk 0:01:14.9]} 22. Nxb6 {[%clk
0:01:36.1]} 22... Qxb6 {[%clk 0:01:15.8]} 23. Qb3 {[%clk 0:01:30.3]} 23... Rc8
{[%clk 0:01:01.3]} 24. axb5 {[%clk 0:01:30.2]} 24... axb5 {[%clk 0:00:42.3]} 25.
Rfc1 {[%clk 0:01:22.8]} 25... Re8 {[%clk 0:00:19.6]} 26. Qd5 {[%clk 0:01:05]}
26... d3 {[%clk 0:00:19]} 27. Rc6 {[%clk 0:01:00.8]} 27... Qd4 {[%clk
0:00:08.7]} 28. Rxd6 {[%clk 0:00:42.2]} 28... Qxb2 {[%clk 0:00:06.4]} 29. Rd1
{[%clk 0:00:40.3]} 29... Qe5 {[%clk 0:00:04.9]} 30. Qxe5 {[%clk 0:00:30.8]}
30... Rxe5 {[%clk 0:00:05.8]} 31. f3 {[%clk 0:00:28.5]} 31... b4 {[%clk
0:00:06.3]} 32. Rb6 {[%clk 0:00:15.5]} 32... Bf8 {[%clk 0:00:04]} 33. Rxd3
{[%clk 0:00:14.7]} 33... Bc5+ {[%clk 0:00:04.4]} 34. Kf1 {[%clk 0:00:12.2]}
34... Bxb6 {[%clk 0:00:05]} 35. Ke2 {[%clk 0:00:10.2]} 35... Kg7 {[%clk
0:00:05.6]} 36. Rb3 {[%clk 0:00:10.1]} 36... Bc5 {[%clk 0:00:05]} 37. Kd3 {[%clk
0:00:10.1]} 37... Be7 {[%clk 0:00:05.1]} 38. Rxb4 {[%clk 0:00:08]} 38... Bxb4
{[%clk 0:00:04.7]} 0-1

[Event "Late-Titled-Tuesday-Blitz-April-30-2024"]
[Site "Chess.com"]
[Date "2024.04.30"]
[Round "5"]
[White "dosto07"]
[Black "simaopdias"]
[Result "1/2-1/2"]
[WhiteElo "2505"]
[BlackElo "2335"]
[TimeControl "180+1"]
[EndTime "14:57:16 PDT"]
[Termination "Game drawn by repetition"]

1. e4 {[%clk 0:02:58.9]} 1... c5 {[%clk 0:02:59.9]} 2. Nf3 {[%clk 0:02:57.9]}
2... g6 {[%clk 0:03:00.2]} 3. c3 {[%clk 0:02:57.3]} 3... Bg7 {[%clk 0:02:59.8]}
4. d4 {[%clk 0:02:56.7]} 4... cxd4 {[%clk 0:03:00.7]} 5. cxd4 {[%clk 0:02:57.3]}
5... d5 {[%clk 0:03:01.2]} 6. e5 {[%clk 0:02:57.9]} 6... Nh6 {[%clk 0:03:01.4]}
7. Bb5+ {[%clk 0:02:56.3]} 7... Bd7 {[%clk 0:02:59.8]} 8. Bxd7+ {[%clk 0:02:55]}
8... Qxd7 {[%clk 0:03:00]} 9. O-O {[%clk 0:02:54.4]} 9... O-O {[%clk 0:03:00.1]}
10. Nc3 {[%clk 0:02:55]} 10... Nc6 {[%clk 0:02:59.6]} 11. Re1 {[%clk 0:02:51]}
11... f6 {[%clk 0:02:50.4]} 12. Qb3 {[%clk 0:02:43.4]} 12... e6 {[%clk
0:02:47.4]} 13. exf6 {[%clk 0:02:38.8]} 13... Rxf6 {[%clk 0:02:48.3]} 14. Bxh6
{[%clk 0:02:23.1]} 14... Bxh6 {[%clk 0:02:46.7]} 15. Na4 {[%clk 0:02:16]} 15...
b6 {[%clk 0:02:42.4]} 16. Rad1 {[%clk 0:02:07]} 16... Raf8 {[%clk 0:02:41.3]}
17. Rd3 {[%clk 0:02:01.2]} 17... Bg7 {[%clk 0:02:23.3]} 18. Nc3 {[%clk
0:01:53.4]} 18... Rf4 {[%clk 0:02:19.1]} 19. Ne2 {[%clk 0:01:52.7]} 19... Re4
{[%clk 0:02:01.7]} 20. Qd1 {[%clk 0:01:46.3]} 20... Nb4 {[%clk 0:01:49.5]} 21.
Ra3 {[%clk 0:01:45.9]} 21... a5 {[%clk 0:01:43.3]} 22. Nc1 {[%clk 0:01:28.7]}
22... Rxe1+ {[%clk 0:01:38.5]} 23. Nxe1 {[%clk 0:01:28.9]} 23... Nc6 {[%clk
0:01:37.8]} 24. Nf3 {[%clk 0:01:26.9]} 24... Qd6 {[%clk 0:01:32.9]} 25. Re3
{[%clk 0:01:24.9]} 25... Rf4 {[%clk 0:01:20.6]} 26. Ne2 {[%clk 0:01:18.5]} 26...
Rf6 {[%clk 0:01:05.6]} 27. a3 {[%clk 0:01:15.1]} 27... Bh6 {[%clk 0:01:01.7]}
28. Rc3 {[%clk 0:01:14.6]} 28... e5 {[%clk 0:00:51.8]} 29. dxe5 {[%clk
0:01:12.2]} 29... Nxe5 {[%clk 0:00:52.7]} 30. Ned4 {[%clk 0:00:57.7]} 30...
Nxf3+ {[%clk 0:00:50.1]} 31. Nxf3 {[%clk 0:00:55.9]} 31... Re6 {[%clk
0:00:47.2]} 32. g3 {[%clk 0:00:52.6]} 32... Bg7 {[%clk 0:00:41.5]} 33. Rc8+
{[%clk 0:00:50.9]} 33... Bf8 {[%clk 0:00:39.7]} 34. Qd4 {[%clk 0:00:40.7]} 34...
Rf6 {[%clk 0:00:36.9]} 35. Ne5 {[%clk 0:00:36.6]} 35... Kg7 {[%clk 0:00:28.6]}
36. Ng4 {[%clk 0:00:36.2]} 36... Be7 {[%clk 0:00:27.8]} 37. Nxf6 {[%clk
0:00:31.6]} 37... Bxf6 {[%clk 0:00:27.3]} 38. Qd2 {[%clk 0:00:30.7]} 38... d4
{[%clk 0:00:25.7]} 39. Qd3 {[%clk 0:00:27.3]} 39... Qe6 {[%clk 0:00:23.2]} 40.
Rc1 {[%clk 0:00:25.3]} 40... h5 {[%clk 0:00:21.4]} 41. h4 {[%clk 0:00:20.3]}
41... Qd6 {[%clk 0:00:20.1]} 42. Kg2 {[%clk 0:00:20.2]} 42... Qd5+ {[%clk
0:00:19.5]} 43. Kg1 {[%clk 0:00:19.2]} 43... Qd6 {[%clk 0:00:20]} 44. Re1 {[%clk
0:00:19.2]} 44... Qd7 {[%clk 0:00:17.2]} 45. Re4 {[%clk 0:00:19.3]} 45... Qd6
{[%clk 0:00:17]} 46. Kg2 {[%clk 0:00:19.8]} 46... Qc6 {[%clk 0:00:16.9]} 47. Qf3
{[%clk 0:00:18.6]} 47... Qd6 {[%clk 0:00:16.6]} 48. Qd3 {[%clk 0:00:17.5]} 48...
Qc6 {[%clk 0:00:17]} 49. Kf1 {[%clk 0:00:18]} 49... Qc1+ {[%clk 0:00:16.6]} 50.
Kg2 {[%clk 0:00:18.5]} 50... Qc6 {[%clk 0:00:17.1]} 1/2-1/2

[Event "Late-Titled-Tuesday-Blitz-April-30-2024"]
[Site "Chess.com"]
[Date "2024.04.30"]
[Round "5"]
[White "youngdinousaur"]
[Black "cristianserban1"]
[Result "0-1"]
[WhiteElo "2247"]
[BlackElo "2495"]
[TimeControl "180+1"]
[EndTime "14:57:18 PDT"]
[Termination "cristianserban1 won by resignation"]

1. d4 {[%clk 0:03:00.9]} 1... Nf6 {[%clk 0:02:59.3]} 2. Nf3 {[%clk 0:02:58.7]}
2... d5 {[%clk 0:02:59.3]} 3. Bf4 {[%clk 0:02:58.2]} 3... Bf5 {[%clk 0:02:49.9]}
4. e3 {[%clk 0:02:55]} 4... e6 {[%clk 0:02:42.8]} 5. c4 {[%clk 0:02:47.9]} 5...
c6 {[%clk 0:02:42.9]} 6. Qb3 {[%clk 0:02:46.9]} 6... Qb6 {[%clk 0:02:42.3]} 7.
c5 {[%clk 0:02:47.2]} 7... Qxb3 {[%clk 0:02:22.6]} 8. axb3 {[%clk 0:02:48.1]}
8... Nbd7 {[%clk 0:02:22.7]} 9. Nc3 {[%clk 0:02:44]} 9... Nh5 {[%clk 0:02:20.9]}
10. b4 {[%clk 0:02:41.2]} 10... Nxf4 {[%clk 0:02:18.1]} 11. exf4 {[%clk
0:02:42.1]} 11... a6 {[%clk 0:02:09.3]} 12. b5 {[%clk 0:02:41.5]} 12... cxb5
{[%clk 0:02:09]} 13. Bxb5 {[%clk 0:02:29.5]} 13... Rc8 {[%clk 0:02:08.9]} 14.
Ba4 {[%clk 0:02:26.2]} 14... Kd8 {[%clk 0:01:51.6]} 15. b4 {[%clk 0:02:18.6]}
15... f6 {[%clk 0:01:37.6]} 16. Kd2 {[%clk 0:02:12]} 16... Bg4 {[%clk
0:01:29.1]} 17. Ke3 {[%clk 0:02:04.8]} 17... Be7 {[%clk 0:01:12.8]} 18. h3
{[%clk 0:02:04.3]} 18... Bh5 {[%clk 0:00:59]} 19. g4 {[%clk 0:02:03.6]} 19...
Bf7 {[%clk 0:00:59.1]} 20. Rhe1 {[%clk 0:02:01.6]} 20... h5 {[%clk 0:00:54.7]}
21. Rh1 {[%clk 0:01:42.7]} 21... Nb8 {[%clk 0:00:51.9]} 22. g5 {[%clk
0:01:24.2]} 22... Bg6 {[%clk 0:00:46.4]} 23. Nh4 {[%clk 0:01:20.3]} 23... Be8
{[%clk 0:00:42.1]} 24. Rhg1 {[%clk 0:01:15.4]} 24... fxg5 {[%clk 0:00:31.8]} 25.
fxg5 {[%clk 0:01:16.3]} 25... Bxa4 {[%clk 0:00:26.3]} 26. Rxa4 {[%clk
0:01:11.9]} 26... Nc6 {[%clk 0:00:24.7]} 27. f4 {[%clk 0:01:10.3]} 27... Re8
{[%clk 0:00:18.1]} 28. Nf3 {[%clk 0:01:10.4]} 28... Kd7 {[%clk 0:00:14.5]} 29.
h4 {[%clk 0:01:07.1]} 29... g6 {[%clk 0:00:13.8]} 30. Ne5+ {[%clk 0:01:02.4]}
30... Nxe5 {[%clk 0:00:13.8]} 31. fxe5 {[%clk 0:01:03.2]} 31... Rf8 {[%clk
0:00:14.4]} 32. Ne2 {[%clk 0:00:54.6]} 32... Rf5 {[%clk 0:00:06]} 33. Nf4 {[%clk
0:00:47.4]} 33... Rcf8 {[%clk 0:00:06.4]} 34. Nxg6 {[%clk 0:00:44.7]} 34... Rf3+
{[%clk 0:00:06.9]} 35. Ke2 {[%clk 0:00:43.4]} 35... Rf2+ {[%clk 0:00:07.2]} 36.
Ke1 {[%clk 0:00:42.7]} 36... R8f3 {[%clk 0:00:07.2]} 37. Nxe7 {[%clk 0:00:38.4]}
37... Kxe7 {[%clk 0:00:08.1]} 38. g6 {[%clk 0:00:30.3]} 38... Rb2 {[%clk
0:00:08.2]} 39. Ra1 {[%clk 0:00:27.6]} 39... Kf8 {[%clk 0:00:05.8]} 40. Rd1
{[%clk 0:00:14.5]} 40... Kg7 {[%clk 0:00:04.8]} 41. Rd2 {[%clk 0:00:11.2]} 41...
Re3+ {[%clk 0:00:05]} 42. Kd1 {[%clk 0:00:10.5]} 42... Rb1+ {[%clk 0:00:05.1]}
43. Kc2 {[%clk 0:00:10.8]} 43... Rxg1 {[%clk 0:00:05.7]} 0-1

[Event "Late-Titled-Tuesday-Blitz-April-30-2024"]
[Site "Chess.com"]
[Date "2024.04.30"]
[Round "5"]
[White "A4RookA3"]
[Black "martinmena"]
[Result "0-1"]
[WhiteElo "2364"]
[BlackElo "2125"]
[TimeControl "180+1"]
[EndTime "14:57:18 PDT"]
[Termination "martinmena won by checkmate"]

1. d4 {[%clk 0:03:00.9]} 1... d5 {[%clk 0:02:58]} 2. Nc3 {[%clk 0:02:55.1]} 2...
Nf6 {[%clk 0:02:55.8]} 3. Bf4 {[%clk 0:02:54.5]} 3... e6 {[%clk 0:02:54.1]} 4.
Nb5 {[%clk 0:02:53.5]} 4... Na6 {[%clk 0:02:53.1]} 5. e3 {[%clk 0:02:53.7]} 5...
c6 {[%clk 0:02:53.1]} 6. Nc3 {[%clk 0:02:51]} 6... Nc7 {[%clk 0:02:51.3]} 7. Nf3
{[%clk 0:02:51.3]} 7... Bd6 {[%clk 0:02:50.7]} 8. Ne5 {[%clk 0:02:51]} 8... b5
{[%clk 0:02:47.4]} 9. Bd3 {[%clk 0:02:49.6]} 9... Bxe5 {[%clk 0:02:13.4]} 10.
dxe5 {[%clk 0:02:49]} 10... Nd7 {[%clk 0:02:12.8]} 11. Qg4 {[%clk 0:02:42.2]}
11... g6 {[%clk 0:01:56.2]} 12. Ne2 {[%clk 0:01:50.5]} 12... Ba6 {[%clk
0:01:39]} 13. a4 {[%clk 0:01:44.9]} 13... b4 {[%clk 0:01:35.5]} 14. Bxa6 {[%clk
0:01:38.6]} 14... Nxa6 {[%clk 0:01:33.8]} 15. Nd4 {[%clk 0:01:39.5]} 15... Qc7
{[%clk 0:01:08.3]} 16. Qg3 {[%clk 0:00:21.7]} 16... O-O-O {[%clk 0:00:34.2]} 17.
O-O {[%clk 0:00:17.8]} 17... h6 {[%clk 0:00:33.2]} 18. h4 {[%clk 0:00:18]} 18...
Rdg8 {[%clk 0:00:32.5]} 19. c3 {[%clk 0:00:08.7]} 19... g5 {[%clk 0:00:31.9]}
20. hxg5 {[%clk 0:00:08.5]} 20... hxg5 {[%clk 0:00:32.8]} 21. Bxg5 {[%clk
0:00:09.1]} 21... Nxe5 {[%clk 0:00:17.7]} 22. Qf4 {[%clk 0:00:08.5]} 22... Nd3
{[%clk 0:00:10.3]} 23. Qf6 {[%clk 0:00:06.8]} 23... Rh5 {[%clk 0:00:04.7]} 24.
f4 {[%clk 0:00:02.9]} 24... Rg6 {[%clk 0:00:03.3]} 25. Qe7 {[%clk 0:00:01.5]}
25... Qxe7 {[%clk 0:00:03.7]} 26. Bxe7 {[%clk 0:00:02.4]} 26... Kd7 {[%clk
0:00:03.1]} 27. Bg5 {[%clk 0:00:01.8]} 27... f6 {[%clk 0:00:02.8]} 28. g4 {[%clk
0:00:02.4]} 28... Rh3 {[%clk 0:00:02.3]} 29. cxb4 {[%clk 0:00:02.8]} 29... fxg5
{[%clk 0:00:02.2]} 30. Kg2 {[%clk 0:00:03.7]} 30... Rxe3 {[%clk 0:00:02.1]} 31.
f5 {[%clk 0:00:04.6]} 31... exf5 {[%clk 0:00:02]} 32. Rxf5 {[%clk 0:00:05.2]}
32... Rh6 {[%clk 0:00:02]} 33. Rf7+ {[%clk 0:00:05.4]} 33... Kd6 {[%clk
0:00:01.9]} 34. Raf1 {[%clk 0:00:06.3]} 34... Ke5 {[%clk 0:00:02.1]} 35. R1f5+
{[%clk 0:00:06.2]} 35... Kxd4 {[%clk 0:00:02.7]} 36. Rxd5+ {[%clk 0:00:07.1]}
36... cxd5 {[%clk 0:00:02.6]} 37. Rf5 {[%clk 0:00:08]} 37... Nf4+ {[%clk
0:00:02.8]} 38. Kf1 {[%clk 0:00:08.3]} 38... Rh1+ {[%clk 0:00:02.9]} 39. Kf2
{[%clk 0:00:08.3]} 39... Re2+ {[%clk 0:00:03.5]} 40. Kf3 {[%clk 0:00:09.2]}
40... Rh3# {[%clk 0:00:02.7]} 0-1